[Event "*** SCC Grand Prix: Titled Tuesday Blitz"]
[Site "Chess.com"]
[Date "2020.08.11"]
[Round "7"]
[White "KingChess345"]
[Black "Babas"]
[Result "1/2-1/2"]
[WhiteElo "2203"]
[BlackElo "2450"]
[TimeControl "180+1"]
[EndTime "11:18:25 PDT"]
[Termination "Game drawn by stalemate"]

1. d4 {[%clk 0:03:00.9]} 1... Nf6 {[%clk 0:02:48.4]} 2. Nf3 {[%clk 0:03:01.8]}
2... c5 {[%clk 0:02:48.2]} 3. g3 {[%clk 0:03:02.3]} 3... cxd4 {[%clk 0:02:47.6]}
4. Nxd4 {[%clk 0:03:01.5]} 4... e5 {[%clk 0:02:48.1]} 5. Nb3 {[%clk 0:03:00.8]}
5... a5 {[%clk 0:02:47.8]} 6. c4 {[%clk 0:02:49.3]} 6... a4 {[%clk 0:02:47.4]}
7. N3d2 {[%clk 0:02:47.3]} 7... d5 {[%clk 0:02:48.3]} 8. cxd5 {[%clk 0:02:46.7]}
8... Qxd5 {[%clk 0:02:46.9]} 9. Nf3 {[%clk 0:02:45.3]} 9... Qxd1+ {[%clk
0:02:44.3]} 10. Kxd1 {[%clk 0:02:46.2]} 10... Nc6 {[%clk 0:02:34.8]} 11. Nc3
{[%clk 0:02:39.2]} 11... Ng4 {[%clk 0:02:30.3]} 12. Ke1 {[%clk 0:02:35]} 12...
Nb4 {[%clk 0:02:28.9]} 13. Rb1 {[%clk 0:02:26.4]} 13... Be6 {[%clk 0:02:16.9]}
14. h3 {[%clk 0:02:02.1]} 14... O-O-O {[%clk 0:02:15.5]} 15. Bd2 {[%clk
0:01:29.6]} 15... Nc2+ {[%clk 0:02:14.5]} 16. Kd1 {[%clk 0:01:27.7]} 16... Nxf2+
{[%clk 0:02:14.7]} 17. Kxc2 {[%clk 0:01:23.8]} 17... Nxh1 {[%clk 0:02:11.2]} 18.
Be1 {[%clk 0:01:16.6]} 18... Bc5 {[%clk 0:02:04.6]} 19. Ng5 {[%clk 0:00:55.8]}
19... Bc4 {[%clk 0:01:43.5]} 20. Nxa4 {[%clk 0:00:38.2]} 20... Be3 {[%clk
0:01:43.4]} 21. Ne4 {[%clk 0:00:30.7]} 21... f5 {[%clk 0:01:39.9]} 22. Nd2
{[%clk 0:00:26.1]} 22... Bxd2 {[%clk 0:01:30.5]} 23. Bxd2 {[%clk 0:00:27]} 23...
Nxg3 {[%clk 0:01:30.3]} 24. Nb6+ {[%clk 0:00:23.4]} 24... Kb8 {[%clk 0:00:59.6]}
25. Nxc4 {[%clk 0:00:21.7]} 25... Rhe8 {[%clk 0:00:57.3]} 26. Bc3 {[%clk
0:00:17.1]} 26... Rd5 {[%clk 0:00:44.2]} 27. e3 {[%clk 0:00:09.8]} 27... Ne4
{[%clk 0:00:36.7]} 28. Bg2 {[%clk 0:00:04.7]} 28... Rc8 {[%clk 0:00:30.7]} 29.
Bxe4 {[%clk 0:00:02.3]} 29... fxe4 {[%clk 0:00:27.1]} 30. Nb6 {[%clk 0:00:02.5]}
30... Rcd8 {[%clk 0:00:26]} 31. Nxd5 {[%clk 0:00:02.4]} 31... Rxd5 {[%clk
0:00:26.9]} 32. Rd1 {[%clk 0:00:02.7]} 32... Rc5 {[%clk 0:00:26.2]} 33. Rd7
{[%clk 0:00:01.2]} 33... b5 {[%clk 0:00:23.6]} 34. Rxg7 {[%clk 0:00:01.7]} 34...
b4 {[%clk 0:00:24.1]} 35. Rxh7 {[%clk 0:00:01.9]} 35... bxc3 {[%clk 0:00:24.6]}
36. bxc3 {[%clk 0:00:02.6]} 36... Ra5 {[%clk 0:00:24.9]} 37. Kb3 {[%clk
0:00:02.3]} 37... Rb5+ {[%clk 0:00:25.5]} 38. Kc4 {[%clk 0:00:02.2]} 38... Rb2
{[%clk 0:00:25.8]} 39. Kd5 {[%clk 0:00:01.9]} 39... Rxa2 {[%clk 0:00:26.2]} 40.
Kxe4 {[%clk 0:00:02.7]} 40... Rc2 {[%clk 0:00:26.3]} 41. Kxe5 {[%clk 0:00:03.6]}
41... Rxc3 {[%clk 0:00:26.7]} 42. e4 {[%clk 0:00:04.5]} 42... Kc8 {[%clk
0:00:26.6]} 43. Kf6 {[%clk 0:00:04.8]} 43... Kd8 {[%clk 0:00:27.2]} 44. e5
{[%clk 0:00:05.3]} 44... Ke8 {[%clk 0:00:27.7]} 45. e6 {[%clk 0:00:05.5]} 45...
Rf3+ {[%clk 0:00:27.5]} 46. Ke5 {[%clk 0:00:06.1]} 46... Re3+ {[%clk 0:00:28.1]}
47. Kf5 {[%clk 0:00:06.6]} 47... Rf3+ {[%clk 0:00:28.5]} 48. Ke4 {[%clk
0:00:06.8]} 48... Rf1 {[%clk 0:00:28.6]} 49. Ke5 {[%clk 0:00:07.2]} 49... Re1+
{[%clk 0:00:29]} 50. Kf6 {[%clk 0:00:07.6]} 50... Rf1+ {[%clk 0:00:29]} 51. Kg6
{[%clk 0:00:08.1]} 51... Rg1+ {[%clk 0:00:29.2]} 52. Kh5 {[%clk 0:00:07.1]}
52... Rg3 {[%clk 0:00:24.6]} 53. h4 {[%clk 0:00:05]} 53... Re3 {[%clk
0:00:24.5]} 54. e7 {[%clk 0:00:03.3]} 54... Rxe7 {[%clk 0:00:18.2]} 55. Rxe7+
{[%clk 0:00:04.2]} 55... Kxe7 {[%clk 0:00:18.6]} 56. Kg6 {[%clk 0:00:03.2]}
56... Kf8 {[%clk 0:00:19]} 57. h5 {[%clk 0:00:02.6]} 57... Kg8 {[%clk
0:00:19.4]} 58. h6 {[%clk 0:00:01.9]} 58... Kh8 {[%clk 0:00:20.3]} 59. h7 {[%clk
0:00:02.2]} 1/2-1/2

[Event "*** SCC Grand Prix: Titled Tuesday Blitz"]
[Site "Chess.com"]
[Date "2020.08.11"]
[Round "7"]
[White "hellokostya"]
[Black "FMJoseHerrera"]
[Result "0-1"]
[WhiteElo "2386"]
[BlackElo "2518"]
[TimeControl "180+1"]
[EndTime "11:18:26 PDT"]
[Termination "FMJoseHerrera won on time"]

1. Nf3 {[%clk 0:03:00.9]} 1... Nf6 {[%clk 0:02:59.9]} 2. e3 {[%clk 0:02:59.6]}
2... g6 {[%clk 0:03:00.3]} 3. d4 {[%clk 0:02:58.9]} 3... Bg7 {[%clk 0:03:01.2]}
4. Be2 {[%clk 0:02:57.7]} 4... d6 {[%clk 0:03:02.1]} 5. c4 {[%clk 0:02:57.4]}
5... O-O {[%clk 0:03:03]} 6. Nc3 {[%clk 0:02:57.7]} 6... c6 {[%clk 0:03:02.6]}
7. O-O {[%clk 0:02:49.8]} 7... a6 {[%clk 0:03:03.5]} 8. b4 {[%clk 0:02:37.7]}
8... b5 {[%clk 0:03:02.7]} 9. a3 {[%clk 0:02:33.9]} 9... Nbd7 {[%clk 0:03:02.3]}
10. Bb2 {[%clk 0:02:31.4]} 10... bxc4 {[%clk 0:02:59.1]} 11. Bxc4 {[%clk
0:02:30.9]} 11... a5 {[%clk 0:03:00]} 12. e4 {[%clk 0:02:19.3]} 12... Nb6 {[%clk
0:02:34.3]} 13. Bd3 {[%clk 0:02:15.7]} 13... axb4 {[%clk 0:02:28.5]} 14. axb4
{[%clk 0:02:15.3]} 14... Rb8 {[%clk 0:02:29.4]} 15. h3 {[%clk 0:02:08.3]} 15...
Be6 {[%clk 0:02:27.6]} 16. Qe2 {[%clk 0:02:07.9]} 16... Qc7 {[%clk 0:02:15.6]}
17. Rfc1 {[%clk 0:02:06]} 17... Nh5 {[%clk 0:02:10.5]} 18. d5 {[%clk 0:01:42.5]}
18... cxd5 {[%clk 0:02:09.4]} 19. Nxd5 {[%clk 0:01:39.7]} 19... Qd8 {[%clk
0:02:06.6]} 20. Bxg7 {[%clk 0:01:39.1]} 20... Nxg7 {[%clk 0:02:05]} 21. Nd4
{[%clk 0:01:28]} 21... Nxd5 {[%clk 0:02:00.9]} 22. exd5 {[%clk 0:01:22]} 22...
Bxd5 {[%clk 0:01:59.4]} 23. b5 {[%clk 0:01:19.5]} 23... Ne6 {[%clk 0:01:45.4]}
24. Nc6 {[%clk 0:01:11.7]} 24... Bxc6 {[%clk 0:01:42.2]} 25. bxc6 {[%clk
0:01:12.6]} 25... Qb6 {[%clk 0:01:34]} 26. Rab1 {[%clk 0:01:09]} 26... Qc7
{[%clk 0:01:25.5]} 27. Be4 {[%clk 0:00:56.4]} 27... Rxb1 {[%clk 0:01:20.4]} 28.
Rxb1 {[%clk 0:00:57.3]} 28... Nc5 {[%clk 0:01:21]} 29. Bf3 {[%clk 0:00:53.9]}
29... Rc8 {[%clk 0:01:17.9]} 30. Qb5 {[%clk 0:00:53.1]} 30... e6 {[%clk
0:01:13.9]} 31. h4 {[%clk 0:00:52.7]} 31... h5 {[%clk 0:01:12.8]} 32. g3 {[%clk
0:00:52.3]} 32... Qe7 {[%clk 0:01:07.1]} 33. Kg2 {[%clk 0:00:51.2]} 33... Rc7
{[%clk 0:00:48.3]} 34. Qb6 {[%clk 0:00:44.9]} 34... d5 {[%clk 0:00:47]} 35. Rc1
{[%clk 0:00:42.8]} 35... Nd3 {[%clk 0:00:46.9]} 36. Qb8+ {[%clk 0:00:22.6]}
36... Kh7 {[%clk 0:00:45.6]} 37. Rd1 {[%clk 0:00:18.8]} 37... Ne5 {[%clk
0:00:45.1]} 38. Be2 {[%clk 0:00:15.5]} 38... Nxc6 {[%clk 0:00:44.2]} 39. Qb1
{[%clk 0:00:15.3]} 39... Rb7 {[%clk 0:00:42.8]} 40. Qc2 {[%clk 0:00:14.9]} 40...
Qd6 {[%clk 0:00:36.2]} 41. Bxh5 {[%clk 0:00:13.9]} 41... Nb4 {[%clk 0:00:33.2]}
42. Qb1 {[%clk 0:00:12.4]} 42... Qa6 {[%clk 0:00:26.5]} 43. Bf3 {[%clk
0:00:11.5]} 43... Qa2 {[%clk 0:00:23.9]} 44. Qc1 {[%clk 0:00:11.1]} 44... Qc2
{[%clk 0:00:17.6]} 45. Qf4 {[%clk 0:00:09.2]} 45... Nd3 {[%clk 0:00:17.1]} 46.
Qe3 {[%clk 0:00:06.1]} 46... Rb3 {[%clk 0:00:16]} 47. h5 {[%clk 0:00:02.9]}
47... Nb2 {[%clk 0:00:09.7]} 48. Qg5 {[%clk 0:00:02]} 48... Rxf3 {[%clk
0:00:09.1]} 49. hxg6+ {[%clk 0:00:02]} 49... fxg6 {[%clk 0:00:09.1]} 50. Rh1+
{[%clk 0:00:01.7]} 50... Kg7 {[%clk 0:00:09]} 51. Qe7+ {[%clk 0:00:02.1]} 51...
Rf7 {[%clk 0:00:08.6]} 52. Qh4 {[%clk 0:00:02]} 52... Qxf2+ {[%clk 0:00:08.3]}
53. Kh3 {[%clk 0:00:02.3]} 53... Qf5+ {[%clk 0:00:09.2]} 54. Kg2 {[%clk
0:00:01.9]} 54... Qf3+ {[%clk 0:00:08.6]} 55. Kh2 {[%clk 0:00:02.3]} 55... Nd3
{[%clk 0:00:09.4]} 0-1

[Event "*** SCC Grand Prix: Titled Tuesday Blitz"]
[Site "Chess.com"]
[Date "2020.08.11"]
[Round "7"]
[White "chess94cu"]
[Black "Zkid"]
[Result "1/2-1/2"]
[WhiteElo "2598"]
[BlackElo "2841"]
[TimeControl "180+1"]
[EndTime "11:18:27 PDT"]
[Termination "Game drawn - insufficient material"]

1. e4 {[%clk 0:02:59.9]} 1... c5 {[%clk 0:02:59.4]} 2. Nf3 {[%clk 0:02:59.7]}
2... Nc6 {[%clk 0:02:59.9]} 3. Bb5 {[%clk 0:02:59.4]} 3... g6 {[%clk 0:02:59.5]}
4. Bxc6 {[%clk 0:02:58.9]} 4... bxc6 {[%clk 0:02:59.7]} 5. O-O {[%clk
0:02:58.1]} 5... Bg7 {[%clk 0:03:00.2]} 6. Re1 {[%clk 0:02:58.5]} 6... Qc7
{[%clk 0:03:00.5]} 7. c3 {[%clk 0:02:55.8]} 7... d6 {[%clk 0:03:00]} 8. d4
{[%clk 0:02:53.9]} 8... cxd4 {[%clk 0:02:57.1]} 9. cxd4 {[%clk 0:02:54.8]} 9...
Bg4 {[%clk 0:02:55.3]} 10. Be3 {[%clk 0:02:52.5]} 10... Nf6 {[%clk 0:02:52]} 11.
Nc3 {[%clk 0:02:46.4]} 11... O-O {[%clk 0:02:50.3]} 12. h3 {[%clk 0:02:43.7]}
12... Bxf3 {[%clk 0:02:48.1]} 13. Qxf3 {[%clk 0:02:44.3]} 13... Rab8 {[%clk
0:02:47.7]} 14. Qe2 {[%clk 0:02:42.1]} 14... Nd7 {[%clk 0:02:45.5]} 15. Rac1
{[%clk 0:02:29.8]} 15... Qa5 {[%clk 0:02:43.2]} 16. Red1 {[%clk 0:02:24]} 16...
Rfc8 {[%clk 0:02:38.4]} 17. b3 {[%clk 0:02:20.5]} 17... e6 {[%clk 0:02:22]} 18.
Rc2 {[%clk 0:02:14.5]} 18... d5 {[%clk 0:02:16.2]} 19. Rdc1 {[%clk 0:01:50.3]}
19... Qb4 {[%clk 0:02:05.7]} 20. Qd3 {[%clk 0:01:09.4]} 20... Nb6 {[%clk
0:01:54.3]} 21. Ne2 {[%clk 0:01:02.3]} 21... Qb5 {[%clk 0:01:25.4]} 22. Qxb5
{[%clk 0:00:50.9]} 22... cxb5 {[%clk 0:01:26.3]} 23. Rxc8+ {[%clk 0:00:51.5]}
23... Rxc8 {[%clk 0:01:27.2]} 24. Rxc8+ {[%clk 0:00:51.3]} 24... Nxc8 {[%clk
0:01:28.1]} 25. exd5 {[%clk 0:00:52.1]} 25... exd5 {[%clk 0:01:29]} 26. Nc3
{[%clk 0:00:52.6]} 26... a6 {[%clk 0:01:23.5]} 27. Nxd5 {[%clk 0:00:52.3]} 27...
Nd6 {[%clk 0:01:23.2]} 28. g4 {[%clk 0:00:46.9]} 28... a5 {[%clk 0:01:18.4]} 29.
Kf1 {[%clk 0:00:39.7]} 29... f5 {[%clk 0:01:17.5]} 30. f3 {[%clk 0:00:37.3]}
30... Kf7 {[%clk 0:01:16]} 31. Ke2 {[%clk 0:00:37.1]} 31... Ke6 {[%clk
0:01:12.4]} 32. Nf4+ {[%clk 0:00:36.8]} 32... Kd7 {[%clk 0:01:11.5]} 33. Kd3
{[%clk 0:00:35.6]} 33... a4 {[%clk 0:00:55.7]} 34. h4 {[%clk 0:00:32.4]} 34...
axb3 {[%clk 0:00:51.3]} 35. axb3 {[%clk 0:00:32.5]} 35... fxg4 {[%clk
0:00:48.5]} 36. fxg4 {[%clk 0:00:32.5]} 36... Ne8 {[%clk 0:00:46.3]} 37. h5
{[%clk 0:00:18.8]} 37... gxh5 {[%clk 0:00:41.6]} 38. Nxh5 {[%clk 0:00:16.8]}
38... Bf8 {[%clk 0:00:40.5]} 39. Bf4 {[%clk 0:00:16.8]} 39... Ba3 {[%clk
0:00:29.4]} 40. d5 {[%clk 0:00:15.7]} 40... Bb2 {[%clk 0:00:26.1]} 41. Ke4
{[%clk 0:00:15.7]} 41... Ke7 {[%clk 0:00:25.6]} 42. Be5 {[%clk 0:00:15.5]} 42...
Bc1 {[%clk 0:00:22.2]} 43. Kf5 {[%clk 0:00:15.3]} 43... Nd6+ {[%clk 0:00:18]}
44. Bxd6+ {[%clk 0:00:14]} 44... Kxd6 {[%clk 0:00:18.9]} 45. Nf6 {[%clk
0:00:14.2]} 45... h6 {[%clk 0:00:18.1]} 46. Kg6 {[%clk 0:00:14.4]} 46... Kc5
{[%clk 0:00:16.9]} 47. Ng8 {[%clk 0:00:12.5]} 47... Kxd5 {[%clk 0:00:17]} 48.
Nxh6 {[%clk 0:00:12.6]} 48... Kc5 {[%clk 0:00:17.6]} 49. Nf5 {[%clk 0:00:12.8]}
49... Kb4 {[%clk 0:00:16.9]} 50. Nd4 {[%clk 0:00:12.8]} 50... Bb2 {[%clk
0:00:17.2]} 51. Nxb5 {[%clk 0:00:12.6]} 51... Kxb5 {[%clk 0:00:18.1]} 52. Kf7
{[%clk 0:00:12.9]} 52... Kb4 {[%clk 0:00:18.3]} 53. g5 {[%clk 0:00:13.8]} 53...
Kxb3 {[%clk 0:00:18.9]} 54. g6 {[%clk 0:00:14.7]} 54... Bc3 {[%clk 0:00:19.5]}
55. g7 {[%clk 0:00:15.5]} 55... Bxg7 {[%clk 0:00:19.9]} 1/2-1/2

[Event "*** SCC Grand Prix: Titled Tuesday Blitz"]
[Site "Chess.com"]
[Date "2020.08.11"]
[Round "7"]
[White "sergivila"]
[Black "wild_cat99"]
[Result "0-1"]
[WhiteElo "2446"]
[BlackElo "2637"]
[TimeControl "180+1"]
[EndTime "11:18:29 PDT"]
[Termination "wild_cat99 won on time"]

1. e4 {[%clk 0:03:00.9]} 1... c5 {[%clk 0:02:59.4]} 2. Nf3 {[%clk 0:03:00.3]}
2... d6 {[%clk 0:03:00]} 3. Bb5+ {[%clk 0:02:58.1]} 3... Bd7 {[%clk 0:02:59.1]}
4. Bxd7+ {[%clk 0:02:57.7]} 4... Qxd7 {[%clk 0:03:00]} 5. c4 {[%clk 0:02:57.2]}
5... Nf6 {[%clk 0:02:57]} 6. Nc3 {[%clk 0:02:56.7]} 6... g6 {[%clk 0:02:57]} 7.
d4 {[%clk 0:02:53.5]} 7... cxd4 {[%clk 0:02:55.6]} 8. Nxd4 {[%clk 0:02:54.4]}
8... Bg7 {[%clk 0:02:55.9]} 9. b3 {[%clk 0:02:54.1]} 9... O-O {[%clk 0:02:56.2]}
10. Bb2 {[%clk 0:02:54.1]} 10... Nc6 {[%clk 0:02:54.4]} 11. O-O {[%clk
0:02:52.8]} 11... Rac8 {[%clk 0:02:53.6]} 12. Re1 {[%clk 0:02:50.4]} 12... a6
{[%clk 0:02:52.3]} 13. Qd2 {[%clk 0:02:47.1]} 13... h5 {[%clk 0:02:49.2]} 14.
Nxc6 {[%clk 0:02:32.1]} 14... bxc6 {[%clk 0:02:47.3]} 15. Rad1 {[%clk
0:02:28.7]} 15... Qa7 {[%clk 0:02:20.4]} 16. Na4 {[%clk 0:02:20.8]} 16... Nd7
{[%clk 0:02:13.4]} 17. Bxg7 {[%clk 0:02:16.4]} 17... Kxg7 {[%clk 0:02:14.3]} 18.
Qb2+ {[%clk 0:02:10.7]} 18... f6 {[%clk 0:02:11.1]} 19. Re3 {[%clk 0:02:06.6]}
19... Rh8 {[%clk 0:02:04]} 20. Qc3 {[%clk 0:01:50.7]} 20... Nc5 {[%clk
0:01:47.1]} 21. Nb2 {[%clk 0:01:46.6]} 21... h4 {[%clk 0:01:46.3]} 22. h3 {[%clk
0:01:42.5]} 22... g5 {[%clk 0:01:42.7]} 23. Rde1 {[%clk 0:01:27.9]} 23... Ne6
{[%clk 0:01:41.8]} 24. e5 {[%clk 0:01:23.4]} 24... dxe5 {[%clk 0:01:35.9]} 25.
Rxe5 {[%clk 0:01:22.3]} 25... Qd4 {[%clk 0:01:34.5]} 26. Qxd4 {[%clk 0:01:19.3]}
26... Nxd4 {[%clk 0:01:35.4]} 27. Rxe7+ {[%clk 0:01:19.5]} 27... Kg6 {[%clk
0:01:33.8]} 28. Nd3 {[%clk 0:01:17.3]} 28... Rcd8 {[%clk 0:01:24.1]} 29. Nc5
{[%clk 0:01:16]} 29... a5 {[%clk 0:01:13.8]} 30. Ra7 {[%clk 0:01:11.5]} 30...
Ra8 {[%clk 0:00:48.5]} 31. Rxa8 {[%clk 0:01:04.3]} 31... Rxa8 {[%clk 0:00:49.4]}
32. Re7 {[%clk 0:01:04]} 32... Nc2 {[%clk 0:00:19.5]} 33. Re6 {[%clk 0:00:46.6]}
33... Nb4 {[%clk 0:00:17.8]} 34. f3 {[%clk 0:00:43.6]} 34... Kf5 {[%clk
0:00:16.8]} 35. Re2 {[%clk 0:00:39.8]} 35... Rd8 {[%clk 0:00:14.2]} 36. a3
{[%clk 0:00:36.7]} 36... Rd1+ {[%clk 0:00:13.4]} 37. Kh2 {[%clk 0:00:29.1]}
37... Nd3 {[%clk 0:00:13.5]} 38. Ne6 {[%clk 0:00:23]} 38... Nc1 {[%clk
0:00:07.6]} 39. Re4 {[%clk 0:00:20.1]} 39... Nxb3 {[%clk 0:00:07.2]} 40. c5
{[%clk 0:00:07.7]} 40... Nd2 {[%clk 0:00:06.1]} 41. Nd4+ {[%clk 0:00:07.1]}
41... Kg6 {[%clk 0:00:05.9]} 42. Re6 {[%clk 0:00:06.5]} 42... Nc4 {[%clk
0:00:05.8]} 43. Nxc6 {[%clk 0:00:06.4]} 43... Nxa3 {[%clk 0:00:05.8]} 44. Nxa5
{[%clk 0:00:06.2]} 44... Nb5 {[%clk 0:00:05.3]} 45. c6 {[%clk 0:00:06.2]} 45...
Rc1 {[%clk 0:00:04.8]} 46. Re7 {[%clk 0:00:06]} 46... f5 {[%clk 0:00:04]} 47.
Rb7 {[%clk 0:00:05.6]} 47... Nd6 {[%clk 0:00:03.6]} 48. Rd7 {[%clk 0:00:04.4]}
48... Nb5 {[%clk 0:00:03.3]} 49. Rb7 {[%clk 0:00:02.7]} 49... Nd6 {[%clk
0:00:03.1]} 50. Rb3 {[%clk 0:00:02.6]} 50... Kf6 {[%clk 0:00:02.1]} 51. Rd3
{[%clk 0:00:02.6]} 51... Nb5 {[%clk 0:00:02]} 0-1

[Event "*** SCC Grand Prix: Titled Tuesday Blitz"]
[Site "Chess.com"]
[Date "2020.08.11"]
[Round "7"]
[White "LaPorfia"]
[Black "Sultanasharminshirin"]
[Result "1-0"]
[WhiteElo "2250"]
[BlackElo "2034"]
[TimeControl "180+1"]
[EndTime "11:18:29 PDT"]
[Termination "LaPorfia won on time"]

1. d4 {[%clk 0:03:00.9]} 1... d5 {[%clk 0:02:59.1]} 2. Nf3 {[%clk 0:03:00.5]}
2... Nf6 {[%clk 0:02:58]} 3. Bf4 {[%clk 0:02:59.5]} 3... Bf5 {[%clk 0:02:55.6]}
4. e3 {[%clk 0:02:57.5]} 4... e6 {[%clk 0:02:55.8]} 5. Ne5 {[%clk 0:02:56.7]}
5... c6 {[%clk 0:02:55.6]} 6. g4 {[%clk 0:02:55.8]} 6... Be4 {[%clk 0:02:52.6]}
7. f3 {[%clk 0:02:55.5]} 7... Bg6 {[%clk 0:02:51.6]} 8. h4 {[%clk 0:02:54.6]}
8... Qa5+ {[%clk 0:02:29]} 9. Nd2 {[%clk 0:02:51.3]} 9... h5 {[%clk 0:01:31.3]}
10. Nxg6 {[%clk 0:02:50.1]} 10... fxg6 {[%clk 0:01:31.7]} 11. Bd3 {[%clk
0:02:35.5]} 11... Bb4 {[%clk 0:01:23.7]} 12. c3 {[%clk 0:02:32]} 12... Be7
{[%clk 0:01:22]} 13. Bxg6+ {[%clk 0:02:30.9]} 13... Kd7 {[%clk 0:01:20.9]} 14.
g5 {[%clk 0:02:27.4]} 14... Ne8 {[%clk 0:01:13.1]} 15. e4 {[%clk 0:02:22.6]}
15... Bd6 {[%clk 0:01:05.2]} 16. Bxe8+ {[%clk 0:01:33.7]} 16... Rxe8 {[%clk
0:01:02.6]} 17. Bxd6 {[%clk 0:01:33.1]} 17... Kxd6 {[%clk 0:01:03]} 18. Nb3
{[%clk 0:01:33]} 18... Qb5 {[%clk 0:00:53.2]} 19. Qd2 {[%clk 0:01:30.6]} 19...
Rf8 {[%clk 0:00:48.8]} 20. O-O-O {[%clk 0:00:35.9]} 20... a5 {[%clk 0:00:42.2]}
21. Nc5 {[%clk 0:00:34.5]} 21... Na6 {[%clk 0:00:38.8]} 22. Qh2+ {[%clk
0:00:34.1]} 22... Ke7 {[%clk 0:00:33.3]} 23. exd5 {[%clk 0:00:34.3]} 23... cxd5
{[%clk 0:00:30.1]} 24. Nxa6 {[%clk 0:00:33.4]} 24... Rxa6 {[%clk 0:00:23.5]} 25.
Qc7+ {[%clk 0:00:31.5]} 25... Qd7 {[%clk 0:00:22]} 26. Qe5 {[%clk 0:00:29.8]}
26... Kd8 {[%clk 0:00:19.5]} 27. Rhf1 {[%clk 0:00:25.6]} 27... Rf5 {[%clk
0:00:18.5]} 28. Qe3 {[%clk 0:00:21.4]} 28... Kc7 {[%clk 0:00:17.2]} 29. Rde1
{[%clk 0:00:21.1]} 29... Kb8 {[%clk 0:00:16.2]} 30. f4 {[%clk 0:00:21.3]} 30...
Rb6 {[%clk 0:00:15.5]} 31. Qe2 {[%clk 0:00:19.7]} 31... Ka7 {[%clk 0:00:13.9]}
32. Qxh5 {[%clk 0:00:18.3]} 32... Qb5 {[%clk 0:00:13]} 33. Qe2 {[%clk
0:00:17.3]} 33... Qa4 {[%clk 0:00:11.1]} 34. a3 {[%clk 0:00:16.1]} 34... Qb3
{[%clk 0:00:10.6]} 35. Qc2 {[%clk 0:00:16]} 35... Qa2 {[%clk 0:00:10.5]} 36. Qb1
{[%clk 0:00:15.5]} 36... Qb3 {[%clk 0:00:09.7]} 37. h5 {[%clk 0:00:14.6]} 37...
Qc4 {[%clk 0:00:08.4]} 38. Qc2 {[%clk 0:00:13.5]} 38... Rb3 {[%clk 0:00:06.8]}
39. Qe2 {[%clk 0:00:10.8]} 39... Qc6 {[%clk 0:00:06.4]} 40. Rf3 {[%clk
0:00:07.2]} 40... Qb6 {[%clk 0:00:01]} 41. h6 {[%clk 0:00:06.3]} 41... Rxb2
{[%clk 0:00:01.1]} 42. Qxb2 {[%clk 0:00:05.6]} 1-0

[Event "*** SCC Grand Prix: Titled Tuesday Blitz"]
[Site "Chess.com"]
[Date "2020.08.11"]
[Round "7"]
[White "johnathan113"]
[Black "Beca95"]
[Result "1/2-1/2"]
[WhiteElo "2717"]
[BlackElo "2880"]
[TimeControl "180+1"]
[EndTime "11:18:30 PDT"]
[Termination "Game drawn - insufficient material"]

1. d4 {[%clk 0:02:50.2]} 1... Nf6 {[%clk 0:02:58.9]} 2. Nc3 {[%clk 0:02:50.5]}
2... d5 {[%clk 0:02:58.4]} 3. Bf4 {[%clk 0:02:51.1]} 3... c5 {[%clk 0:02:54.5]}
4. e3 {[%clk 0:02:50.8]} 4... a6 {[%clk 0:02:54.9]} 5. dxc5 {[%clk 0:02:50.2]}
5... Qa5 {[%clk 0:02:48.4]} 6. a3 {[%clk 0:02:34.2]} 6... Qxc5 {[%clk
0:02:47.9]} 7. Nf3 {[%clk 0:02:34.5]} 7... e6 {[%clk 0:02:45.4]} 8. Bd3 {[%clk
0:02:34.1]} 8... Bd6 {[%clk 0:02:43.2]} 9. Bxd6 {[%clk 0:02:25.1]} 9... Qxd6
{[%clk 0:02:44.1]} 10. e4 {[%clk 0:02:15.2]} 10... dxe4 {[%clk 0:02:44]} 11.
Nxe4 {[%clk 0:02:16.1]} 11... Nxe4 {[%clk 0:02:43.7]} 12. Bxe4 {[%clk
0:02:16.8]} 12... Qxd1+ {[%clk 0:02:42.8]} 13. Rxd1 {[%clk 0:02:17.7]} 13... Nd7
{[%clk 0:02:42.7]} 14. Nd4 {[%clk 0:01:32.7]} 14... Ke7 {[%clk 0:02:38.8]} 15.
O-O {[%clk 0:01:31.7]} 15... Nf6 {[%clk 0:02:37.7]} 16. Rfe1 {[%clk 0:01:29.2]}
16... Nxe4 {[%clk 0:02:33.5]} 17. Rxe4 {[%clk 0:01:30.1]} 17... g6 {[%clk
0:02:33.8]} 18. Nb3 {[%clk 0:01:27.9]} 18... Rd8 {[%clk 0:02:31.9]} 19. Rxd8
{[%clk 0:01:26.1]} 19... Kxd8 {[%clk 0:02:32.8]} 20. Na5 {[%clk 0:01:13.3]}
20... b6 {[%clk 0:02:05.7]} 21. Nc4 {[%clk 0:01:12.8]} 21... Kc7 {[%clk
0:02:03.7]} 22. Rh4 {[%clk 0:01:05.1]} 22... h5 {[%clk 0:01:52.4]} 23. Ne5
{[%clk 0:01:05.2]} 23... Bb7 {[%clk 0:01:08.7]} 24. Rc4+ {[%clk 0:01:04.5]}
24... Kd6 {[%clk 0:01:00.1]} 25. Nxf7+ {[%clk 0:01:04.6]} 25... Kd5 {[%clk
0:01:00.6]} 26. Rc7 {[%clk 0:01:04.2]} 26... Rb8 {[%clk 0:00:59.9]} 27. c4+
{[%clk 0:01:02.8]} 27... Kd4 {[%clk 0:00:59.7]} 28. Rd7+ {[%clk 0:00:49.1]}
28... Kc5 {[%clk 0:00:52.6]} 29. b4+ {[%clk 0:00:43.8]} 29... Kxc4 {[%clk
0:00:52.8]} 30. Nd6+ {[%clk 0:00:42.9]} 30... Kb3 {[%clk 0:00:51.5]} 31. Nxb7
{[%clk 0:00:37.7]} 31... Kxa3 {[%clk 0:00:51.3]} 32. Nd8 {[%clk 0:00:32.7]}
32... Rc8 {[%clk 0:00:50.3]} 33. h4 {[%clk 0:00:28.7]} 33... Kxb4 {[%clk
0:00:49.4]} 34. Nxe6 {[%clk 0:00:28.7]} 34... b5 {[%clk 0:00:48.8]} 35. Rb7
{[%clk 0:00:19.9]} 35... a5 {[%clk 0:00:47.4]} 36. Nc7 {[%clk 0:00:16.2]} 36...
Rxc7 {[%clk 0:00:44.4]} 37. Rxc7 {[%clk 0:00:15.7]} 37... a4 {[%clk 0:00:45]}
38. g4 {[%clk 0:00:09.4]} 38... hxg4 {[%clk 0:00:44]} 39. Kf1 {[%clk 0:00:04.5]}
39... a3 {[%clk 0:00:44.3]} 40. Ke1 {[%clk 0:00:04.7]} 40... a2 {[%clk
0:00:43.7]} 41. Ra7 {[%clk 0:00:04.7]} 41... Kb3 {[%clk 0:00:43.7]} 42. Kd2
{[%clk 0:00:03.2]} 42... Kb2 {[%clk 0:00:41.3]} 43. Ra5 {[%clk 0:00:03.7]} 43...
b4 {[%clk 0:00:39]} 44. Kd3 {[%clk 0:00:03.8]} 44... b3 {[%clk 0:00:37.3]} 45.
Kc4 {[%clk 0:00:03.7]} 45... Kc2 {[%clk 0:00:36.5]} 46. Ra3 {[%clk 0:00:03.5]}
46... a1=Q {[%clk 0:00:09.8]} 47. Rxa1 {[%clk 0:00:03.2]} 47... b2 {[%clk
0:00:10.7]} 48. Ra2 {[%clk 0:00:03.5]} 48... Kc1 {[%clk 0:00:11.4]} 49. Rxb2
{[%clk 0:00:03.6]} 49... Kxb2 {[%clk 0:00:12.3]} 50. Kd3 {[%clk 0:00:04.1]}
50... Kc1 {[%clk 0:00:11.9]} 51. Ke3 {[%clk 0:00:04]} 51... Kd1 {[%clk
0:00:12.1]} 52. Kf4 {[%clk 0:00:04.7]} 52... Ke2 {[%clk 0:00:12.5]} 53. Kxg4
{[%clk 0:00:05.3]} 53... Kxf2 {[%clk 0:00:13]} 54. Kg5 {[%clk 0:00:04.2]} 54...
Kg3 {[%clk 0:00:13.1]} 55. Kxg6 {[%clk 0:00:04.7]} 55... Kxh4 {[%clk 0:00:13.4]}
1/2-1/2